bitfinex/quotes_SOLUSD_20251207
["timestamp","ask_amount","ask_price","bid_price","bid_amount"]
[1765121411826,8.58,129.2,129.16,0.68]
[1765121412024,8.80994492,129.21,129.16,0.68]
[1765121412324,8.80994492,129.22,129.16,0.68]
[1765121413099,16.54907758,129.22,129.17,7.74173569]
[1765121413507,17.26907758,129.22,129.18,0.68]
[1765121414010,16.54907758,129.22,129.18,0.68]
[1765121414894,16.54907758,129.22,129.18,8.4208363]
[1765121415099,17.26907758,129.22,129.18,0.68]
[1765121415299,17.26907758,129.22,129.17,7.74148208]
[1765121415300,17.26907758,129.22,129.19,0.68]
[1765121415699,17.26907758,129.22,129.16,7.74210986]
[1765121415700,35.89592791,129.22,129.16,7.74210986]
[1765121415934,0.72,129.21,129.17,8.42171448]
[1765121416460,8.45977251,129.21,129.17,8.42171448]
[1765121416607,8.45977251,129.21,129.18,0.68]
[1765121416934,0.72,129.2,129.17,0.68]
[1765121417627,0.72,129.2,129.15,16.32270348]
[1765121417931,0.72,129.2,129.16,0.68]
[1765121418731,7.74053719,129.19,129.13,0.68]
[1765121419031,35.90182509,129.19,129.13,8.42389676]
[1765121419210,36.62182509,129.19,129.13,8.42389676]
[1765121419532,36.62182509,129.19,129.14,0.68]
[1765121421125,35.90182509,129.19,129.14,0.68]
[1765121421333,8.80994492,129.17,129.14,0.68]
[1765121422838,8.80994492,129.18,129.14,8.42316657]
[1765121423337,16.55119657,129.18,129.15,0.71]
[1765121425817,17.21119657,129.18,129.15,0.71]
[1765121426013,16.308864,129.2,129.15,27.80976851]
[1765121426334,0.66,129.23,129.16,8.58]
[1765121426913,8.39832422,129.23,129.16,8.58]
[1765121427433,7.73754255,129.24,129.17,7.74173569]
[1765121427640,0.66,129.22,129.17,7.74173569]
[1765121430328,8.80994492,129.21,129.17,7.74173569]
[1765121430520,8.80994492,129.21,129.16,8.58]
[1765121430722,0.66,129.2,129.16,8.58]
[1765121431027,0.66,129.2,129.16,16.32215302]
[1765121433957,8.80994492,129.19,129.14,7.7431271]
[1765121434324,8.80994492,129.17,129.13,7.74413381]
[1765121434724,9.46994492,129.17,129.13,7.74413381]
[1765121435134,19.3498452,129.2,129.13,27.10446835]
[1765121435135,17.2106038,129.19,129.13,27.10446835]
[1765121435352,8.80994492,129.18,129.13,27.10446835]
[1765121435561,9.46994492,129.18,129.13,27.10446835]
[1765121436058,8.80994492,129.19,129.13,27.10446835]
[1765121436236,9.46994492,129.19,129.13,27.10446835]
[1765121437237,0.66,129.24,129.16,16.308864]
[1765121437438,7.73574688,129.27,129.17,8.58]
[1765121437654,8.80994492,129.27,129.2,16.308864]
[1765121437847,0.76,129.28,129.21,8.58]
[1765121438257,8.80994492,129.27,129.21,8.58]
[1765121438448,0.76,129.28,129.21,8.58]
[1765121438643,8.78,129.31,129.21,8.58]
[1765121438849,16.308864,129.28,129.22,0.66]
[1765121439041,8.80994492,129.29,129.22,0.66]
[1765121439244,0.1,129.32,129.23,27.08349453]
[1765121439443,0.1,129.32,129.26,16.308864]
[1765121439654,0.1,129.32,129.27,9.24]
[1765121440157,0.1,129.32,129.28,0.66]
[1765121440768,0.76,129.32,129.27,8.58]
[1765121441085,8.80994492,129.31,129.27,8.58]
[1765121441248,8.80994492,129.31,129.26,8.58]
[1765121441448,0.66,129.3,129.26,8.58]
[1765121441679,0.66,129.3,129.26,9.24]
[1765121442271,0.66,129.3,129.26,8.58]
[1765121442452,0.66,129.3,129.26,9.24]
[1765121442772,0.66,129.3,129.26,8.58]
[1765121442773,8.80994492,129.29,129.26,8.58]
[1765121443277,0.66,129.28,129.26,8.58]
[1765121444468,17.20449857,129.29,129.26,8.58]
[1765121445170,17.20449857,129.29,129.26,9.24]
[1765121445171,16.54449857,129.29,129.26,9.24]
[1765121445373,8.80994492,129.29,129.26,9.24]
[1765121445676,9.46994492,129.29,129.26,8.58]
[1765121446070,17.20451847,129.29,129.26,8.58]
[1765121446878,17.20451847,129.29,129.26,9.24]
[1765121447080,17.20451847,129.29,129.26,8.58]
[1765121447869,0.66,129.28,129.26,8.58]
[1765121448393,8.80994492,129.27,129.23,16.31801063]
[1765121448553,8.80994492,129.27,129.23,16.97801063]
[1765121448754,9.46994492,129.27,129.23,16.97801063]
[1765121449163,17.20580782,129.27,129.23,16.97801063]
[1765121450077,0.66,129.26,129.23,8.58]
[1765121450574,8.80994492,129.25,129.21,7.73918428]
[1765121450973,0.71,129.24,129.21,7.73918428]
[1765121451281,0.71,129.24,129.21,8.39918428]
[1765121451474,17.25703222,129.25,129.21,8.39918428]
[1765121451680,8.80994492,129.25,129.22,0.66]
[1765121452260,17.25693763,129.25,129.22,0.66]
[1765121452578,0.71,129.24,129.21,7.73918428]
[1765121452880,0.71,129.24,129.21,8.39918428]
[1765121453081,17.25693763,129.25,129.21,8.39918428]
[1765121453378,8.80994492,129.25,129.21,7.73918428]
[1765121453585,8.80994492,129.25,129.22,0.66]
[1765121453881,9.51994492,129.25,129.22,0.66]
[1765121454476,9.51994492,129.25,129.21,8.39918428]
[1765121455483,8.39590181,129.27,129.22,0.66]
[1765121455660,8.39590181,129.27,129.23,8.58]
[1765121455975,8.39590181,129.27,129.23,9.24]
[1765121456164,16.54511182,129.28,129.24,0.66]
[1765121456369,17.20511182,129.28,129.24,0.66]
[1765121457085,9.46994492,129.28,129.24,0.66]
[1765121457463,7.73470858,129.29,129.25,7.7369439]
[1765121457677,7.73470858,129.29,129.26,0.66]
[1765121457859,8.39470858,129.29,129.25,8.3969439]
[1765121458059,8.39470858,129.29,129.21,16.308864]
[1765121458060,9.46994492,129.28,129.22,0.66]
[1765121458274,9.46994492,129.28,129.23,8.58]
[1765121458581,0.66,129.27,129.23,8.58]
[1765121458953,0.66,129.27,129.23,9.24]
[1765121459160,8.39586847,129.27,129.23,16.97789123]
[1765121459387,16.54520585,129.28,129.23,16.31789123]
[1765121459560,16.54520585,129.28,129.24,0.66]
[1765121459987,17.20520585,129.28,129.24,0.66]
[1765121460459,0.66,129.27,129.24,8.39737283]
[1765121460887,17.20520585,129.28,129.24,8.39737283]
[1765121461369,16.54520585,129.28,129.24,8.39737283]
[1765121461682,17.20520585,129.28,129.24,8.39737283]
[1765121462393,9.46994492,129.28,129.24,8.39737283]
[1765121462694,8.80994492,129.3,129.25,0.66]
[1765121462984,9.46994492,129.3,129.26,8.58]
[1765121463486,9.46994492,129.3,129.26,9.24]
[1765121463691,9.46994492,129.3,129.26,16.9760829]
[1765121463875,0.66,129.29,129.26,8.58]
[1765121464878,0.66,129.29,129.23,8.58]
[1765121465662,8.80994492,129.26,129.23,8.58]
[1765121466072,0.66,129.25,129.23,8.58]
[1765121467295,8.39705341,129.25,129.21,7.73909801]
[1765121467590,24.7050103,129.27,129.23,7.73799388]
[1765121467962,24.7050103,129.27,129.23,8.39799388]
[1765121468190,0.66,129.26,129.23,7.73799388]
[1765121469786,17.20639026,129.26,129.22,0.66]
[1765121470086,8.80994492,129.25,129.21,7.73895242]
[1765121470290,9.46994492,129.25,129.21,8.39895242]
[1765121470892,9.46994492,129.25,129.21,7.73895242]
[1765121471078,16.308864,129.26,129.22,0.66]
[1765121471274,0.66,129.25,129.21,7.73895242]
[1765121471471,16.968864,129.26,129.22,0.66]
[1765121471882,0.66,129.26,129.22,0.66]
[1765121472083,0.66,129.3,129.23,8.58]
[1765121472483,9.46994492,129.31,129.24,0.66]
[1765121472885,0.66,129.3,129.24,0.66]
[1765121473198,17.20345429,129.31,129.25,27.07930366]
[1765121473508,17.20345429,129.31,129.26,8.58]
[1765121473789,17.20345429,129.31,129.26,9.24]
[1765121473998,0.66,129.3,129.26,9.24]
[1765121474496,0.66,129.3,129.27,7.73574688]
[1765121474894,8.80994492,129.29,129.23,20.00497504]
[1765121475201,8.80994492,129.29,129.25,7.73656963]
[1765121475398,8.80994492,129.29,129.26,7.73610336]
[1765121475569,9.46994492,129.29,129.26,7.73610336]
[1765121476103,0.66,129.28,129.24,16.31743954]
[1765121476470,0.66,129.28,129.24,16.97743954]
[1765121476870,0.66,129.28,129.24,16.31743954]
[1765121477694,8.39518122,129.28,129.24,16.31743954]
[1765121478071,0.66,129.28,129.24,16.97743954]
[1765121478502,0.66,129.28,129.25,0.66]
[1765121478801,0.66,129.28,129.24,35.66129593]
[1765121478976,0.66,129.28,129.24,36.32129593]
[1765121479992,9.46994492,129.3,129.25,0.66]
[1765121480192,17.20393175,129.3,129.25,0.66]
[1765121480384,0.66,129.29,129.25,0.66]
[1765121480575,17.23393175,129.3,129.25,0.66]
[1765121481203,0.69,129.29,129.25,0.66]
[1765121481500,0.69,129.29,129.26,7.73634535]
[1765121481678,0.69,129.3,129.26,7.73634535]
[1765121481998,0.69,129.3,129.26,8.39634535]
[1765121482298,9.49994492,129.31,129.27,9.22]
[1765121482501,0.79,129.32,129.27,9.22]
[1765121482798,0.69,129.31,129.27,9.22]
[1765121483378,0.69,129.31,129.28,0.66]
[1765121483699,16.64284926,129.32,129.28,8.39514851]
[1765121483900,17.33284926,129.32,129.28,8.39514851]
[1765121484077,0.69,129.31,129.28,8.39514851]
[1765121484275,0.1,129.32,129.28,8.39514851]
[1765121484477,0.79,129.32,129.29,0.66]
[1765121484676,0.1,129.32,129.29,0.66]
[1765121485692,0.1,129.32,129.3,7.73395204]
[1765121486180,0.79,129.32,129.29,8.39432153]
[1765121486382,0.79,129.32,129.29,7.73432153]
[1765121488597,0.79,129.32,129.28,27.07301979]
[1765121488808,0.1,129.32,129.29,0.66]
[1765121489503,0.1,129.32,129.3,8.56]
[1765121489691,8.60994492,129.33,129.3,9.22]
[1765121490001,0.89,129.34,129.3,9.22]
[1765121490391,0.69,129.33,129.3,9.22]
[1765121490591,0.69,129.33,129.3,16.95345332]
[1765121490904,0.69,129.33,129.3,16.29345332]
[1765121491291,0.89,129.34,129.3,16.95345332]
[1765121491494,0.2,129.34,129.31,0.66]
[1765121491920,0.89,129.34,129.31,0.66]
[1765121492091,0.89,129.34,129.3,7.73345332]
[1765121492307,0.89,129.34,129.28,16.968864]
[1765121492308,0.69,129.33,129.29,16.29439218]
[1765121492806,8.80994492,129.31,129.27,7.73542026]
[1765121492982,8.80994492,129.31,129.22,0.66]
[1765121492983,8.80994492,129.29,129.22,0.66]
[1765121493323,17.36994492,129.29,129.22,8.56]
[1765121493479,0.69,129.28,129.22,8.56]
[1765121493679,0.69,129.28,129.22,16.29852682]
[1765121493910,8.80994492,129.27,129.22,16.95852682]
[1765121494086,8.80994492,129.27,129.23,0.66]
[1765121494279,0.69,129.26,129.22,36.30537715]
[1765121495586,0.69,129.28,129.23,0.66]
[1765121495786,8.80994492,129.28,129.23,0.66]
[1765121496002,0.69,129.27,129.23,0.66]
[1765121496812,0.69,129.27,129.24,7.73754255]
[1765121499019,0.69,129.27,129.24,27.08139894]
[1765121499224,0.69,129.29,129.25,9.22]
[1765121499594,8.80994492,129.3,129.25,8.56]
[1765121499792,7.73373346,129.31,129.26,0.66]
[1765121499793,0.69,129.31,129.26,0.66]
[1765121501226,8.4235268,129.31,129.26,7.73634535]
[1765121501721,0.69,129.3,129.26,7.73634535]
[1765121502117,0.69,129.3,129.26,8.39634535]
[1765121502318,8.80994492,129.29,129.26,7.73634535]
[1765121502836,0.69,129.28,129.26,7.73634535]
[1765121502995,9.49994492,129.3,129.26,8.39634535]
[1765121503195,0.69,129.29,129.26,8.39634535]
[1765121503429,0.69,129.29,129.26,7.73634535]
[1765121503825,9.49994492,129.3,129.26,8.39634535]
[1765121504134,0.69,129.29,129.26,8.39634535]
[1765121504300,0.69,129.29,129.26,7.73634535]
[1765121504928,8.42362949,129.31,129.26,27.73720872]
[1765121505119,9.49994492,129.3,129.26,7.73634535]
[1765121505306,9.49994492,129.3,129.25,16.29667079]
[1765121505505,0.69,129.29,129.25,16.29667079]
[1765121506127,8.42463337,129.29,129.25,16.29667079]
[1765121506828,0.69,129.28,129.25,16.29667079]
[1765121507024,0.69,129.31,129.26,0.66]
[1765121507930,0.69,129.31,129.27,7.73574688]
[1765121507931,8.42362158,129.31,129.27,7.73574688]
[1765121508430,9.49994492,129.31,129.27,8.39574688]
[1765121510238,9.45,129.34,129.28,9.22]
[1765121510406,8.62163444,129.34,129.28,9.22]
[1765121510608,0.9,129.34,129.29,0.66]
[1765121511626,0.2,129.34,129.3,7.73395204]
[1765121511932,0.9,129.34,129.31,8.56]
[1765121512526,0.2,129.34,129.31,9.22]
[1765121512725,0.7,129.33,129.29,16.308864]
[1765121512924,0.7,129.33,129.25,16.308864]
[1765121513235,0.7,129.33,129.28,0.66]
[1765121513606,0.7,129.33,129.29,7.73446154]
[1765121514130,8.43221536,129.33,129.29,7.73446154]
[1765121514346,0.7,129.33,129.29,7.73446154]
[1765121514532,0.7,129.33,129.29,8.39446154]
[1765121514738,0.2,129.34,129.3,0.66]
[1765121515107,0.9,129.34,129.3,0.66]
[1765121515508,0.2,129.34,129.3,0.66]
[1765121515730,0.2,129.34,129.31,7.73335395]
[1765121516138,0.2,129.34,129.32,8.56]
[1765121516305,0.2,129.34,129.32,9.22]
[1765121516717,0.2,129.34,129.32,8.56]
[1765121516918,0.88,129.34,129.32,8.56]
[1765121517414,0.68,129.33,129.31,16.29335395]
[1765121518115,0.68,129.33,129.28,8.56]
[1765121518317,8.41216371,129.33,129.28,16.29475212]
[1765121518630,8.41216371,129.33,129.27,7.73561065]
[1765121518826,8.80994492,129.31,129.27,7.73561065]
[1765121519218,0.68,129.3,129.27,7.73561065]
[1765121519420,0.2,129.34,129.28,0.66]
[1765121519625,0.2,129.34,129.29,8.56]
[1765121519626,0.88,129.34,129.29,8.56]
[1765121520238,0.68,129.33,129.29,16.29430528]
[1765121521239,0.2,129.34,129.3,0.66]
[1765121522042,0.2,129.34,129.31,27.06673883]
[1765121522230,0.2,129.35,129.32,8.56]
[1765121522540,0.2,129.35,129.34,16.308864]
[1765121522914,0.2,129.35,129.34,16.768864]
[1765121524322,0.2,129.35,129.34,24.50042422]
[1765121524528,0.2,129.35,129.34,32.60042422]
[1765121524733,0.88,129.35,129.34,8.56]
[1765121525138,0.88,129.35,129.34,7.73156022]
[1765121525322,0.2,129.35,129.34,7.73156022]
[1765121526753,0.88,129.35,129.33,16.2921475]
[1765121527718,0.88,129.35,129.33,8.56]
[1765121529079,0.88,129.35,129.3,19.7940523]
[1765121529080,8.61100725,129.35,129.3,19.7940523]
[1765121529220,0.68,129.34,129.31,16.2932408]
[1765121529422,0.68,129.34,129.32,7.73272301]
[1765121529844,0.68,129.34,129.32,16.29272301]
[1765121530930,17.36994492,129.33,129.23,0.72]
[1765121531132,8.80994492,129.29,129.23,7.73794067]
[1765121531333,9.48994492,129.29,129.24,0.72]
[1765121531536,8.80994492,129.29,129.26,7.73621665]
[1765121531851,0.68,129.29,129.24,20.06385266]
[1765121532022,0.68,129.29,129.25,0.72]
[1765121532650,0.68,129.29,129.26,7.73631439]
[1765121533434,0.68,129.29,129.26,8.45631439]
[1765121535555,8.41466901,129.29,129.25,16.29686237]
[1765121535743,8.80994492,129.28,129.23,7.73794141]
[1765121536054,9.48994492,129.28,129.23,7.73794141]
[1765121536245,0.68,129.27,129.23,7.73794141]
[1765121536571,8.80994492,129.26,129.21,8.56]
[1765121537050,0.68,129.25,129.21,8.56]
[1765121537254,0.68,129.25,129.21,16.29930262]
[1765121537431,0.68,129.25,129.21,17.01930262]
[1765121538357,8.41696691,129.25,129.21,17.01930262]
[1765121538653,8.80994492,129.24,129.18,19.35219993]
[1765121538863,9.48994492,129.24,129.18,28.63219993]
[1765121539047,0.68,129.23,129.19,7.73998562]
[1765121539254,8.80994492,129.24,129.19,27.8113286]
[1765121539452,8.80994492,129.24,129.2,0.72]
[1765121539643,9.48994492,129.24,129.2,0.72]
[1765121540061,0.68,129.23,129.2,0.72]
[1765121540280,0.68,129.23,129.19,27.0913286]
[1765121540578,0.68,129.23,129.18,17.02095823]
[1765121541571,8.80994492,129.22,129.17,7.74154784]
[1765121541954,0.71,129.21,129.17,8.45156744]
[1765121543368,0.71,129.21,129.18,7.7411072]
[1765121543577,17.018864,129.23,129.18,8.4511072]
[1765121543750,17.018864,129.23,129.15,70.45619212]
[1765121543751,24.75704428,129.23,129.19,0.71]
[1765121544164,24.04704428,129.23,129.19,0.71]
[1765121544363,24.75704428,129.23,129.19,0.71]
[1765121545066,17.018864,129.23,129.19,0.71]
[1765121545268,0.71,129.23,129.19,0.71]
[1765121546273,0.71,129.23,129.2,7.73993808]
[1765121546473,8.80994492,129.26,129.2,7.73993808]
[1765121546653,0.71,129.25,129.2,27.79978328]
[1765121547057,0.71,129.25,129.21,0.71]
[1765121547768,8.44724196,129.25,129.21,8.44922306]
[1765121547979,8.80994492,129.25,129.22,0.71]
[1765121548868,24.04482343,129.27,129.22,0.71]
[1765121549076,24.75482343,129.27,129.22,0.71]
[1765121550253,24.04482343,129.27,129.23,7.73814129]
[1765121550662,24.04482343,129.27,129.23,8.44814129]
[1765121550976,24.75482343,129.27,129.23,8.44814129]
[1765121551462,17.25522446,129.28,129.24,0.71]
[1765121551868,0.71,129.27,129.24,0.71]
[1765121552474,0.71,129.27,129.23,0.71]
[1765121553081,8.44579702,129.27,129.22,27.08468778]
[1765121553256,0.71,129.27,129.23,0.71]
[1765121554673,0.71,129.27,129.24,7.73754255]
[1765121555376,8.80994492,129.28,129.25,0.71]
[1765121555567,8.4449231,129.29,129.25,0.71]
[1765121555775,32.85316456,129.3,129.25,0.71]
[1765121556080,0.71,129.29,129.25,0.71]
[1765121556757,0.71,129.29,129.26,7.73634535]
[1765121558477,0.71,129.29,129.26,0.71]
[1765121558674,8.44466971,129.29,129.25,7.7369439]
[1765121558976,8.44466971,129.29,129.25,8.4469439]
[1765121559651,0.71,129.28,129.25,8.4469439]
[1765121560579,7.73466971,129.29,129.26,8.44628092]
[1765121561172,8.44466971,129.29,129.26,8.44628092]
[1765121561375,8.44466971,129.29,129.25,7.73667281]
[1765121561675,7.73466971,129.29,129.25,8.44667281]
[1765121561859,17.36994492,129.31,129.26,8.44629969]
[1765121562061,0.71,129.3,129.26,8.44629969]
[1765121562773,0.71,129.3,129.26,7.73629969]
[1765121563665,8.44408147,129.3,129.26,7.73629969]
[1765121563859,8.44408147,129.3,129.25,8.4469439]
[1765121564081,0.71,129.29,129.25,27.78930366]
[1765121564273,0.71,129.3,129.26,0.71]
[1765121564976,8.80994492,129.31,129.26,0.71]
[1765121565180,9.51994492,129.31,129.26,0.71]
[1765121566081,0.71,129.3,129.27,7.73574688]
[1765121566386,15.7533615,129.31,129.27,7.73574688]
[1765121566969,15.7533615,129.31,129.27,8.44574688]
[1765121567877,15.7533615,129.31,129.26,7.73607043]
[1765121568381,0.61,129.3,129.26,7.73607043]
[1765121569090,8.34431679,129.3,129.25,27.07930366]
[1765121569380,8.34431679,129.3,129.25,8.4469439]
[1765121569381,8.80994492,129.29,129.25,8.4469439]
[1765121569684,9.41994492,129.29,129.25,8.4469439]
[1765121570860,16.54456929,129.29,129.26,0.69]
[1765121571284,17.15456929,129.29,129.26,0.69]
[1765121573080,17.15456929,129.29,129.26,8.4263239]
[1765121575702,0.61,129.28,129.25,7.7369439]
[1765121575861,17.15456929,129.29,129.25,8.4169439]
[1765121576784,17.15456929,129.29,129.25,7.7369439]
[1765121576964,17.15456929,129.29,129.26,0.68]
[1765121578783,8.80994492,129.3,129.26,8.41619617]
[1765121579183,8.80994492,129.3,129.27,0.68]
[1765121579787,8.80994492,129.3,129.27,8.41564886]
[1765121581085,0.61,129.34,129.28,0.68]
[1765121581286,8.80994492,129.33,129.28,0.68]
[1765121581788,8.80994492,129.33,129.29,7.73455023]
[1765121582091,9.41994492,129.33,129.29,7.73455023]
[1765121582274,8.80994492,129.33,129.3,0.68]
[1765121582705,17.15213528,129.33,129.29,7.73455023]
[1765121582992,0.61,129.32,129.29,7.73455023]
[1765121583493,0.61,129.32,129.24,0.68]
[1765121583494,8.80994492,129.31,129.24,0.68]
[1765121583686,8.80994492,129.31,129.24,9.24]
[1765121583986,25.11880892,129.29,129.24,16.29748518]
[1765121584365,8.80994492,129.27,129.24,16.29748518]
[1765121584573,8.80994492,129.27,129.24,8.56]
[1765121584772,0.61,129.26,129.23,7.73812018]
[1765121585596,8.80994492,129.25,129.19,0.68]
[1765121585894,8.80994492,129.23,129.17,20.03392005]
[1765121586295,8.80994492,129.21,129.17,20.03392005]
[1765121586477,8.80994492,129.21,129.17,8.42170596]
[1765121586683,0.61,129.21,129.17,8.42170596]
[1765121587303,0.61,129.21,129.16,16.3022578]
[1765121587602,0.61,129.21,129.16,16.9822578]
[1765121587801,8.80994492,129.19,129.16,16.9822578]
[1765121588369,9.41994492,129.19,129.15,69.63902744]
[1765121588593,9.41994492,129.19,129.15,8.62283532]
[1765121589121,8.80994492,129.17,129.15,0.2]
[1765121589293,8.80994492,129.17,129.15,7.94291356]
[1765121589495,8.80994492,129.2,129.16,0.68]
[1765121589977,8.80994492,129.2,129.16,27.7777899]
[1765121590474,16.308864,129.21,129.17,0.68]
[1765121591691,16.308864,129.21,129.18,7.74113639]
[1765121591994,8.80994492,129.22,129.18,7.74113639]
[1765121592304,8.80994492,129.22,129.19,0.68]
[1765121592596,9.41994492,129.22,129.18,8.42113639]
[1765121592796,9.41994492,129.22,129.19,0.68]
[1765121593103,8.80994492,129.22,129.19,0.68]
[1765121593598,16.308864,129.23,129.19,8.42031509]
[1765121593986,16.308864,129.23,129.19,7.74031509]
[1765121594187,16.308864,129.23,129.19,8.42031509]
[1765121594381,16.308864,129.23,129.19,7.74031509]
[1765121594698,0.61,129.26,129.2,9.24]
[1765121594996,8.80994492,129.25,129.2,9.24]
[1765121595179,8.80994492,129.25,129.21,0.68]
[1765121595599,8.80994492,129.25,129.21,8.41877033]
[1765121596100,16.918864,129.26,129.21,27.08711798]
[1765121596283,8.80994492,129.27,129.22,0.68]
[1765121596487,16.54589004,129.27,129.22,0.68]
[1765121596689,17.15589004,129.27,129.22,0.68]
[1765121597906,8.80994492,129.27,129.23,7.73814129]
[1765121598298,9.41994492,129.27,129.23,8.41814129]
[1765121598598,8.80994492,129.27,129.24,0.68]
[1765121599585,104.3,129.3,129.24,16.97732436]
[1765121599785,8.80994492,129.3,129.24,16.97732436]
[1765121599983,8.80994492,129.3,129.25,0.68]
[1765121600610,0.61,129.29,129.25,0.68]
[1765121601904,0.61,129.29,129.25,8.41642208]
[1765121602577,8.34466015,129.29,129.25,8.41642208]
[1765121604192,8.34466015,129.29,129.25,7.73642208]
[1765121604506,8.34466015,129.29,129.26,8.4163069]
[1765121604507,8.80994492,129.29,129.26,8.4163069]
[1765121605005,8.80994492,129.29,129.27,0.68]
[1765121605403,8.80994492,129.29,129.25,7.7369439]
[1765121605706,8.80994492,129.29,129.26,0.68]
[1765121606316,7.73281893,129.32,129.26,0.68]
[1765121606522,8.80994492,129.31,129.26,0.68]
[1765121606823,8.80994492,129.31,129.27,8.56]
[1765121607306,8.80994492,129.31,129.28,0.68]
[1765121607887,8.34281893,129.32,129.28,8.41481284]
[1765121607888,8.80994492,129.32,129.28,8.41481284]
[1765121608286,0.61,129.31,129.27,16.29546972]
[1765121609206,0.61,129.31,129.27,8.56]
[1765121609609,7.73164651,129.34,129.28,8.41514625]
[1765121609810,8.80994492,129.33,129.28,8.41514625]
[1765121609987,8.80994492,129.33,129.29,0.68]
[1765121611295,8.80994492,129.33,129.3,7.73395204]
[1765121611497,7.73164651,129.34,129.3,7.73395204]
[1765121611498,0.2,129.35,129.3,35.62883216]
[1765121611698,0.2,129.35,129.31,0.68]
[1765121612114,7.93109609,129.35,129.31,0.68]
[1765121613102,7.93109609,129.35,129.31,8.41304895]
[1765121613305,9.41994492,129.34,129.3,16.29374584]
[1765121613515,9.41994492,129.34,129.3,16.97374584]
[1765121614192,9.41994492,129.34,129.31,0.68]
[1765121614398,8.80994492,129.34,129.31,0.68]
[1765121617829,8.80994492,129.34,129.31,8.41330902]
[1765121622715,8.80994492,129.34,129.31,7.73330902]
[1765121622898,9.00994492,129.35,129.32,0.68]
[1765121623101,9.61994492,129.35,129.31,27.7466939]
[1765121623299,17.35095697,129.35,129.31,8.41330902]
[1765121623517,17.35095697,129.35,129.32,0.68]
[1765121623818,17.35095697,129.35,129.31,8.41330902]
[1765121624702,16.74095697,129.35,129.32,8.41271972]
[1765121625302,0.2,129.35,129.33,0.68]
[1765121625801,0.2,129.35,129.32,7.73271972]
[1765121625999,0.81,129.35,129.32,8.41271972]
[1765121627095,7.93108949,129.35,129.32,8.41271972]
[1765121628693,0.2,129.35,129.32,8.41271972]
[1765121628908,0.2,129.35,129.33,0.68]
[1765121629416,0.2,129.35,129.33,9.24]
[1765121629621,0.2,129.35,129.34,0.68]
[1765121630611,0.2,129.35,129.34,8.41156022]
[1765121633118,0.2,129.35,129.33,8.56]
[1765121633119,0.2,129.35,129.33,16.29182618]
[1765121633302,0.2,129.35,129.34,0.66]
[1765121634425,0.2,129.35,129.34,8.39156022]
[1765121638025,0.1,129.37,129.36,16.308864]
[1765121638224,0.1,129.37,129.36,24.868864]
[1765121638522,0.1,129.37,129.36,25.568864]
[1765121639321,0.1,129.37,129.36,9.26]
[1765121639626,0.1,129.37,129.36,25.568864]
[1765121639830,0.1,129.37,129.36,33.29922887]
[1765121640824,1e-08,129.37,129.36,33.29922887]
[1765121641941,0.1,129.42,129.39,16.308864]
[1765121642108,0.1,129.42,129.4,8.56]
[1765121642307,0.1,129.42,129.4,9.26]
[1765121642607,0.1,129.42,129.41,0.7]
[1765121643834,0.1,129.42,129.41,8.4273781]
[1765121650022,1e-08,129.42,129.41,24.7362421]
[1765121650229,1e-08,129.42,129.41,25.50897991]
[1765121650622,0.1,129.46,129.44,16.308864]
[1765121650820,0.1,129.46,129.45,8.56]
[1765121651127,0.66,129.52,129.45,8.56]
[1765121651128,0.66,129.52,129.45,9.26]
[1765121651313,0.66,129.52,129.46,0.7]
[1765121651514,0.66,129.52,129.47,35.59328955]
[1765121652036,0.66,129.52,129.48,0.7]
[1765121652231,0.66,129.57,129.5,16.308864]